fUSD/lending_fUSD_20240318
["ID","MTS","AMOUNT","RATE_DAILY","PERIOD"]
[319466671,1710798643679,-500.0,0.00021917,2]
[319466672,1710798643689,-500.0,0.00021917,2]
[319466673,1710798643698,-500.0,0.00021917,2]
[319466674,1710798643707,-334.43532668,0.00021917,2]
[319466675,1710798643717,-1329.38,0.00021917,2]
[319466676,1710798643726,-500.0,0.00021917,2]
[319466677,1710798643735,-1242.09,0.00021917,2]
[319466678,1710798643744,-500.0,0.00021917,2]
[319466679,1710798643753,-500.0,0.00021917,2]
[319466680,1710798643762,-2288.25,0.00021917,2]
[319466681,1710798643772,-500.0,0.00021917,2]
[319466682,1710798643781,-500.0,0.00021917,2]
[319466683,1710798643791,-500.0,0.00021917,2]
[319466684,1710798643800,-500.0,0.00021917,2]
[319466685,1710798643810,-501.68182175,0.00021917,2]
[319466686,1710798643819,-500.0,0.00021917,2]
[319466687,1710798643828,-500.0,0.00021917,2]
[319466688,1710798643837,-500.0,0.00021917,2]
[319466689,1710798643846,-500.0,0.00021917,2]
[319466690,1710798643855,-500.0,0.00021917,2]
[319466691,1710798643865,-500.0,0.00021917,2]
[319466692,1710798643874,-500.0,0.00021917,2]
[319466693,1710798643883,-1752.64,0.00021917,2]
[319466694,1710798643892,-1428.62,0.00021917,2]
[319466695,1710798643903,-500.0,0.00021917,2]
[319466696,1710798643912,-500.0,0.00021917,2]
[319466697,1710798643922,-1175.29,0.00021917,2]
[319466698,1710798643931,-500.0,0.00021917,2]
[319466699,1710798643940,-1027.99,0.00021917,2]
[319466700,1710798643950,-2447.92,0.00021917,2]
[319466701,1710798643959,-500.0,0.00021917,2]
[319466702,1710798644040,-500.0,0.00021917,2]
[319466703,1710798644050,-500.0,0.00021917,2]
[319466704,1710798644059,-500.0,0.00021917,2]
[319466705,1710798644068,-500.0,0.00021917,2]
[319466706,1710798644077,-500.0,0.00021917,2]
[319466707,1710798644086,-537.4,0.00021917,2]
[319466708,1710798644096,-500.0,0.00021917,2]
[319466709,1710798644105,-1048.1,0.00021917,2]
[319466710,1710798644115,-1762.75,0.00021917,2]
[319466711,1710798644124,-500.0,0.00021917,2]
[319466712,1710798644133,-500.0,0.00021917,2]
[319466713,1710798644142,-1843.35,0.00021917,2]
[319466714,1710798644152,-383.34759628,0.00021917,2]
[319466715,1710798644161,-500.0,0.00021917,2]
[319466716,1710798644170,-500.0,0.00021917,2]
[319466717,1710798644180,-3430.81,0.00021917,2]
[319466718,1710798644189,-500.0,0.00021917,2]
[319466719,1710798644198,-500.0,0.00021917,2]
[319466720,1710798644207,-722.92,0.00021917,2]
[319466721,1710798644217,-500.4278948,0.00021917,2]
[319466722,1710798644226,-500.0,0.00021917,2]
[319466723,1710798644237,-500.0,0.00021917,2]
[319466724,1710798644246,-500.0,0.00021917,2]
[319466725,1710798644255,-500.0,0.00021917,2]
[319466726,1710798644264,-500.0,0.00021917,2]
[319466727,1710798644274,-500.0,0.00021917,2]
[319466728,1710798644283,-500.0,0.00021917,2]
[319466729,1710798644292,-373.79339968,0.00021917,2]
[319466730,1710798644301,-517.02,0.00021917,2]
[319466731,1710798644313,-860.44,0.00021917,2]
[319466732,1710798644322,-2192.92,0.00021917,2]
[319466733,1710798644332,-500.0,0.00021917,2]
[319466734,1710798644341,-500.0,0.00021917,2]
[319466735,1710798644350,-500.0,0.00021917,2]
[319466736,1710798644359,-1651.37,0.00021917,2]
[319466737,1710798644369,-500.0,0.00021917,2]
[319466738,1710798644378,-1238.82,0.00021917,2]
[319466739,1710798644387,-500.0,0.00021917,2]
[319466740,1710798644396,-500.0,0.00021917,2]
[319466741,1710798644406,-500.0,0.00021917,2]
[319466742,1710798644415,-500.0,0.00021917,2]
[319466743,1710798644425,-500.0,0.00021917,2]
[319466744,1710798644435,-437.55201526,0.00021917,2]
[319466745,1710798644445,-721.56,0.00021917,2]
[319466746,1710798644454,-821.83,0.00021917,2]
[319466747,1710798644465,-500.0,0.00021917,2]
[319466748,1710798644476,-1152.06,0.00021917,2]
[319466749,1710798644486,-702.03,0.00021917,2]
[319466750,1710798644496,-500.0,0.00021917,2]
[319466751,1710798644507,-575.7,0.00021917,2]
[319466752,1710798644518,-500.0,0.00021917,2]
[319466753,1710798644529,-578.82324505,0.00021917,2]
[319466754,1710798644539,-1222.47,0.00021917,2]
[319466755,1710798644549,-1301.06,0.00021917,2]
[319466756,1710798644561,-498.64918314,0.00021917,2]
[319466757,1710798644572,-500.0,0.00021917,2]
[319466758,1710798644582,-2629.81,0.00021917,2]
[319466759,1710798644592,-500.0,0.00021917,2]
[319466760,1710798644601,-1653.6,0.00021917,2]
[319466761,1710798644611,-225.278773,0.00021917,2]
[319466762,1710798644621,-500.0,0.00021917,2]
[319466763,1710798644631,-500.0,0.00021917,2]
[319466764,1710798644640,-1904.1,0.00021917,2]
[319466765,1710798644650,-2551.93,0.00021917,2]
[319466766,1710798644660,-1968.8,0.00021917,2]
[319466767,1710798644669,-500.0,0.00021917,2]
[319466768,1710798644679,-500.0,0.00021917,2]
[319466769,1710798644689,-4134.64,0.00021917,2]
[319466770,1710798644699,-563.58,0.00021917,2]
[319466771,1710798644709,-500.0,0.00021917,2]
[319466772,1710798644719,-500.0,0.00021917,2]
[319466773,1710798644728,-500.0,0.00021917,2]
[319466774,1710798644738,-500.0,0.00021917,2]
[319466775,1710798644747,-1923.42,0.00021917,2]
[319466776,1710798644757,-500.0,0.00021917,2]
[319466777,1710798644767,-643.16,0.00021917,2]
[319466778,1710798644776,-500.0,0.00021917,2]
[319466779,1710798644786,-500.0,0.00021917,2]
[319466780,1710798644796,-500.0,0.00021917,2]
[319466781,1710798644808,-482.57499493,0.00021917,2]
[319466782,1710798644817,-500.0,0.00021917,2]
[319466783,1710798644827,-500.0,0.00021917,2]
[319466784,1710798644836,-500.0,0.00021917,2]
[319466785,1710798644846,-500.0,0.00021917,2]
[319466786,1710798644855,-2562.36,0.00021917,2]
[319466787,1710798644865,-803.85,0.00021917,2]
[319466788,1710798644874,-917.51,0.00021917,2]
[319466789,1710798644883,-500.0,0.00021917,2]
[319466790,1710798644893,-2367.94,0.00021917,2]
[319466791,1710798644902,-738.33,0.00021917,2]
[319466792,1710798644911,-508.85201375,0.00021917,2]
[319466793,1710798644920,-500.0,0.00021917,2]
[319466794,1710798644930,-500.0,0.00021917,2]
[319466795,1710798644939,-500.0,0.00021917,2]
[319466796,1710798644949,-500.0,0.00021917,2]
[319466797,1710798644958,-1031.5,0.00021917,2]
[319466798,1710798644967,-500.0,0.00021917,2]
[319466799,1710798644976,-645.93,0.00021917,2]
[319466800,1710798644985,-230.26706204,0.00021917,2]
[319466801,1710798644995,-500.0,0.00021917,2]
[319466802,1710798645004,-3555.26,0.00021917,2]
[319466803,1710798645014,-500.0,0.00021917,2]
[319466804,1710798645024,-151.0,0.00021917,2]
[319466805,1710798645034,-500.0,0.00021917,2]
[319466806,1710798645044,-1113.73,0.00021917,2]
[319466807,1710798645055,-500.0,0.00021917,2]
[319466808,1710798645064,-761.15,0.00021917,2]
[319466809,1710798645074,-500.0,0.00021917,2]
[319466810,1710798645084,-151.0,0.00021917,2]
[319466811,1710798645094,-500.0,0.00021917,2]
[319466812,1710798645103,-1090.81,0.00021917,2]
[319466813,1710798645113,-2223.79,0.00021917,2]
[319466814,1710798645123,-500.0,0.00021917,2]
[319466815,1710798645132,-151.0,0.00021917,2]
[319466816,1710798645142,-500.0,0.00021917,2]
[319466817,1710798645152,-500.0,0.00021917,2]
[319466818,1710798645161,-500.0,0.00021917,2]
[319466819,1710798645170,-1145.69,0.00021917,2]
[319466820,1710798645179,-500.0,0.00021917,2]
[319466821,1710798645189,-604.0,0.00021917,2]
[319466822,1710798645199,-500.0,0.00021917,2]
[319466823,1710798645209,-1264.53,0.00021917,2]
[319466824,1710798645218,-4650.43,0.00021917,2]
[319466825,1710798645228,-658.08,0.00021917,2]
[319466826,1710798645238,-1564.19,0.00021917,2]
[319466827,1710798645249,-841.97,0.00021917,2]
[319466828,1710798645258,-500.0,0.00021917,2]
[319466829,1710798645268,-500.0,0.00021917,2]
[319466830,1710798645278,-500.0,0.00021917,2]
[319466831,1710798645287,-1196.46,0.00021917,2]
[319466832,1710798645297,-500.0,0.00021917,2]
[319466833,1710798645307,-3302.6,0.00021917,2]
[319466834,1710798645319,-943.59,0.00021917,2]
[319466835,1710798645329,-500.0,0.00021917,2]
[319466836,1710798645338,-500.0,0.00021917,2]
[319466837,1710798645348,-2462.45,0.00021917,2]
[319466838,1710798645357,-500.0,0.00021917,2]
[319466839,1710798645367,-500.0,0.00021917,2]
[319466840,1710798645376,-151.0,0.00021917,2]
[319466841,1710798645385,-3529.94,0.00021917,2]
[319466842,1710798645395,-659.91,0.00021917,2]
[319466843,1710798645405,-1537.97,0.00021917,2]
[319466844,1710798645414,-500.0,0.00021917,2]
[319466845,1710798645424,-500.0,0.00021917,2]
[319466846,1710798645434,-541.59566804,0.00021917,2]
[319466847,1710798645443,-500.0,0.00021917,2]
[319466848,1710798645453,-2207.05,0.00021917,2]
[319466849,1710798645462,-1039.97,0.00021917,2]
[319466850,1710798645472,-500.0,0.00021917,2]
[319466851,1710798645481,-500.0,0.00021917,2]
[319466852,1710798645490,-924.33,0.00021917,2]
[319466853,1710798645500,-500.0,0.00021917,2]
[319466854,1710798645510,-500.0,0.00021917,2]
[319466855,1710798645519,-640.25,0.00021917,2]
[319466856,1710798645529,-500.0,0.00021917,2]
[319466857,1710798645538,-618.81,0.00021917,2]
[319466858,1710798645548,-1966.65,0.00021917,2]
[319466859,1710798645559,-500.0,0.00021917,2]
[319466860,1710798645569,-3081.52,0.00021917,2]
[319466861,1710798645578,-500.0,0.00021917,2]
[319466862,1710798645587,-1724.58,0.00021917,2]
[319466863,1710798645597,-500.0,0.00021917,2]
[319466864,1710798645606,-500.0,0.00021917,2]
[319466865,1710798645615,-500.0,0.00021917,2]
[319466866,1710798645625,-500.0,0.00021917,2]
[319466867,1710798645635,-446.53523224,0.00021917,2]
[319466868,1710798645645,-500.0,0.00021917,2]
[319466869,1710798645654,-1179.18,0.00021917,2]
[319466870,1710798645664,-500.0,0.00021917,2]
[319466871,1710798645673,-500.0,0.00021917,2]
[319466872,1710798645683,-1470.5,0.00021917,2]
[319466873,1710798645692,-500.0,0.00021917,2]
[319466874,1710798645701,-1641.61,0.00021917,2]
[319466875,1710798645711,-500.0,0.00021917,2]
[319466876,1710798645720,-500.0,0.00021917,2]
[319466877,1710798645729,-500.0,0.00021917,2]
[319466878,1710798645739,-695.21,0.00021917,2]
[319466879,1710798645748,-500.0,0.00021917,2]
[319466880,1710798645758,-789.92,0.00021917,2]
[319466881,1710798645767,-500.0,0.00021917,2]
[319466882,1710798645777,-500.0,0.00021917,2]
[319466884,1710798645786,-500.0,0.00021917,2]
[319466885,1710798645796,-1357.27,0.00021917,2]
[319466886,1710798645805,-1108.42,0.00021917,2]
[319466887,1710798645814,-500.0,0.00021917,2]
[319466888,1710798645824,-500.0,0.00021917,2]
[319466889,1710798645834,-1839.73,0.00021917,2]
[319466890,1710798645843,-3930.46,0.00021917,2]
[319466892,1710798645853,-686.32,0.00021917,2]
[319466893,1710798645863,-200.0,0.00021917,10]
[319466894,1710798645873,-500.0,0.00021917,2]
[319466895,1710798645882,-500.0,0.00021917,2]
[319466896,1710798645892,-1912.39,0.00021917,2]
[319466897,1710798645902,-500.0,0.00021917,2]
[319466898,1710798645911,-500.0,0.00021917,2]
[319466899,1710798645921,-818.64,0.00021917,2]
[319466900,1710798645931,-500.0,0.00021917,2]
[319466901,1710798645942,-500.0,0.00021917,2]
[319466902,1710798645951,-500.0,0.00021917,2]
[319466903,1710798645961,-500.0,0.00021917,2]
[319466904,1710798645971,-500.0,0.00021917,2]
[319466905,1710798645980,-643.17,0.00021917,2]
[319466906,1710798645990,-500.0,0.00021917,2]
[319466907,1710798645999,-394.5276314,0.00021917,2]
[319466908,1710798646009,-500.0,0.00021917,2]
[319466909,1710798646019,-2420.9,0.00021917,2]
[319466910,1710798646028,-508.92,0.00021917,2]
[319466911,1710798646038,-500.0,0.00021917,2]
[319466912,1710798646048,-5390.43,0.00021917,2]
[319466913,1710798646058,-500.0,0.00021917,2]
[319466914,1710798646068,-982.39,0.00021917,2]
[319466915,1710798646078,-500.0,0.00021917,2]
[319466916,1710798646087,-500.0,0.00021917,2]
[319466917,1710798646096,-500.0,0.00021917,2]
[319466918,1710798646105,-1166.35,0.00021917,2]
[319466919,1710798646115,-546.31,0.00021917,2]
[319466920,1710798646125,-500.0,0.00021917,2]
[319466921,1710798646135,-527.89,0.00021917,2]
[319466922,1710798646145,-500.0,0.00021917,2]
[319466923,1710798646155,-500.0,0.00021917,2]
[319466924,1710798646165,-1575.39,0.00021917,2]
[319466925,1710798646174,-500.0,0.00021917,2]
[319466926,1710798646184,-500.0,0.00021917,2]
[319466927,1710798646194,-500.0,0.00021917,2]
[319466928,1710798646204,-500.0,0.00021917,2]
[319466929,1710798646214,-500.0,0.00021917,2]
[319466930,1710798646223,-500.0,0.00021917,2]
[319466931,1710798646234,-500.0,0.00021917,2]
[319466932,1710798646246,-500.0,0.00021917,2]
[319466933,1710798646256,-500.0,0.00021917,2]
[319466934,1710798646266,-2751.54,0.00021917,2]
[319466935,1710798646277,-500.0,0.00021917,2]
[319466936,1710798646288,-435.28026174,0.00021917,2]
[319466937,1710798646297,-756.25,0.00021917,2]
[319466938,1710798646308,-3725.16,0.00021917,2]
[319466939,1710798646322,-526.68,0.00021917,2]
[319466940,1710798646331,-500.0,0.00021917,2]
[319466941,1710798646341,-511.75,0.00021917,2]
[319466942,1710798646351,-500.0,0.00021917,2]
[319466943,1710798646360,-500.0,0.00021917,2]
[319466944,1710798646370,-500.0,0.00021917,2]
[319466945,1710798646380,-1064.06,0.00021917,2]
[319466946,1710798646389,-500.0,0.00021917,2]
[319466947,1710798646399,-526.15,0.00021917,2]
[319466948,1710798646409,-500.0,0.00021917,2]
[319466949,1710798646419,-720.87,0.00021917,2]
[319466950,1710798646429,-1230.21,0.00021917,2]
[319466951,1710798646438,-1230.21,0.00021917,2]
[319466952,1710798646448,-2291.29,0.00021917,2]
[319466953,1710798646458,-1230.21,0.00021917,2]
[319466954,1710798646467,-1230.21,0.00021917,2]
[319466955,1710798646476,-1230.21,0.00021917,2]
[319466956,1710798646486,-1230.21,0.00021917,2]
[319466957,1710798646496,-1230.21,0.00021917,2]
[319466958,1710798646505,-1230.21,0.00021917,2]
[319466959,1710798646514,-1230.21,0.00021917,2]
[319466960,1710798646524,-500.0,0.00021917,2]
[319466961,1710798646534,-1230.21,0.00021917,2]
[319466962,1710798646544,-1230.21,0.00021917,2]
[319466963,1710798646555,-1230.21,0.00021917,2]
[319466964,1710798646564,-500.0,0.00021917,2]
[319466965,1710798646573,-1723.58,0.00021917,2]
[319466966,1710798646583,-1230.21,0.00021917,2]
[319466967,1710798646593,-1230.21,0.00021917,2]
[319466968,1710798646602,-1497.29,0.00021917,2]
[319466969,1710798646612,-1230.21,0.00021917,2]
[319466970,1710798646623,-500.0,0.00021917,2]
[319466971,1710798646632,-500.0,0.00021917,2]
[319466972,1710798646642,-859.7,0.00021917,2]
[319466973,1710798646652,-500.0,0.00021917,2]
[319466974,1710798646661,-500.0,0.00021917,2]
[319466975,1710798646671,-599.9,0.00021917,2]
[319466976,1710798646681,-1128.6,0.00021917,2]
[319466977,1710798646691,-500.0,0.00021917,2]
[319466978,1710798646701,-500.0,0.00021917,2]
[319466979,1710798646711,-576.99879651,0.00021917,2]
[319466980,1710798646722,-500.0,0.00021917,2]
[319466981,1710798646732,-1316.25,0.00021917,2]
[319466982,1710798646742,-500.0,0.00021917,2]
[319466983,1710798646751,-504.32,0.00021917,2]
[319466984,1710798646761,-500.0,0.00021917,2]
[319466985,1710798646771,-500.0,0.00021917,2]
[319466986,1710798646781,-727.38,0.00021917,2]
[319466987,1710798646791,-1318.54,0.00021917,2]
[319466988,1710798646802,-1097.68,0.00021917,2]
[319466989,1710798646812,-500.44991367,0.00021917,2]
[319466990,1710798646822,-500.0,0.00021917,2]
[319466991,1710798646831,-914.56,0.00021917,2]
[319466992,1710798646841,-500.5710335,0.00021917,2]
[319466993,1710798646851,-1219.21,0.00021917,2]
[319466994,1710798646861,-515.45257667,0.00021917,2]
[319466995,1710798646870,-500.0,0.00021917,2]
[319466996,1710798646880,-500.0,0.00021917,2]
[319466997,1710798647060,-500.0,0.00021917,2]
[319466998,1710798647075,-500.0,0.00021917,2]
[319466999,1710798647085,-1567.39,0.00021917,2]
[319467000,1710798647094,-2569.58,0.00021917,2]
[319467001,1710798647103,-500.0,0.00021917,2]
[319467002,1710798647112,-500.0,0.00021917,2]
[319467003,1710798647121,-1237.36,0.00021917,2]
[319467004,1710798647130,-1258.39,0.00021917,2]
[319467005,1710798647139,-1986.11,0.00021917,2]
[319467006,1710798647148,-2425.4,0.00021917,2]
[319467007,1710798647157,-1650.63,0.00021917,2]
[319467008,1710798647167,-500.0,0.00021917,2]
[319467009,1710798647176,-500.0,0.00021917,2]
[319467010,1710798647185,-500.0,0.00021917,2]
[319467011,1710798647194,-2213.41,0.00021917,2]
[319467012,1710798647203,-500.0,0.00021917,2]
[319467013,1710798647212,-976.86,0.00021917,2]
[319467014,1710798647222,-500.0,0.00021917,2]
[319467015,1710798647234,-754.37,0.00021917,2]
[319467016,1710798647246,-1141.35,0.00021917,2]
[319467017,1710798647256,-500.0,0.00021917,2]
[319467018,1710798647265,-151.0,0.00021917,2]
[319467019,1710798647274,-500.0,0.00021917,2]
[319467020,1710798647285,-500.0,0.00021917,2]
[319467021,1710798647294,-500.0,0.00021917,2]
[319467022,1710798647305,-1053.38,0.00021917,2]
[319467023,1710798647315,-500.0,0.00021917,2]
[319467024,1710798647324,-500.0,0.00021917,2]
[319467025,1710798647333,-603.46,0.00021917,2]
[319467026,1710798647343,-681.61,0.00021917,2]
[319467027,1710798647352,-500.0,0.00021917,2]
[319467028,1710798647361,-1598.45,0.00021917,2]
[319467029,1710798647370,-621.94,0.00021917,2]
[319467030,1710798647379,-500.0,0.00021917,2]
[319467031,1710798647388,-1331.22,0.00021917,2]
[319467032,1710798647398,-500.0,0.00021917,2]
[319467033,1710798647408,-786.73,0.00021917,2]
[319467034,1710798647418,-538.86265736,0.00021917,2]
[319467035,1710798647427,-500.0,0.00021917,2]
[319467036,1710798647437,-1153.67,0.00021917,2]
[319467037,1710798647446,-777.8,0.00021917,2]
[319467038,1710798647456,-151.0,0.00021917,2]
[319467039,1710798647465,-618.67782048,0.00021917,2]
[319467040,1710798647474,-500.0,0.00021917,2]
[319467041,1710798647484,-151.559263,0.00021917,2]
[319467042,1710798647493,-500.0,0.00021917,2]
[319467043,1710798647502,-151.0,0.00021917,2]
[319467044,1710798647511,-859.52,0.00021917,2]
[319467045,1710798647520,-640.16,0.00021917,2]
[319467046,1710798647530,-509.58429687,0.00021917,2]
[319467047,1710798647539,-839.35,0.00021917,2]
[319467048,1710798647548,-500.0,0.00021917,2]
[319467049,1710798647559,-500.0,0.00021917,2]
[319467050,1710798647568,-819.04,0.00021917,2]
[319467051,1710798647577,-2160.06,0.00021917,2]
[319467052,1710798647590,-1739.81,0.00021917,2]
[319467053,1710798647600,-500.0,0.00021917,2]
[319467054,1710798647609,-500.0,0.00021917,2]
[319467055,1710798647619,-500.0,0.00021917,2]
[319467056,1710798647628,-500.0,0.00021917,2]
[319467057,1710798647637,-1776.86,0.00021917,2]
[319467058,1710798647647,-500.0,0.00021917,2]
[319467059,1710798647657,-647.46,0.00021917,2]
[319467060,1710798647666,-500.0,0.00021917,2]
[319467061,1710798647675,-500.0,0.00021917,2]
[319467062,1710798647685,-500.0,0.00021917,2]
[319467063,1710798647694,-1423.06,0.00021917,2]
[319467064,1710798647703,-1006.59,0.00021917,2]
[319467065,1710798647713,-679.61,0.00021917,2]
[319467066,1710798647722,-769.3,0.00021917,2]
[319467067,1710798647732,-2422.57,0.00021917,2]
[319467068,1710798647742,-500.0,0.00021917,2]
[319467069,1710798647751,-500.12468427,0.00021917,2]
[319467070,1710798647760,-500.0,0.00021917,2]
[319467071,1710798647769,-500.0,0.00021917,2]
[319467072,1710798647778,-500.0,0.00021917,2]
[319467073,1710798647787,-2489.18,0.00021917,2]
[319467074,1710798647797,-500.0,0.00021917,2]
[319467075,1710798647807,-555.27,0.00021917,2]
[319467076,1710798647816,-500.0,0.00021917,2]
[319467077,1710798647826,-500.0,0.00021917,2]
[319467078,1710798647835,-1708.1,0.00021917,2]
[319467079,1710798647845,-500.0,0.00021917,2]
[319467080,1710798647854,-3559.88,0.00021917,2]
[319467081,1710798647867,-500.0,0.00021917,2]
[319467082,1710798647876,-944.55,0.00021917,2]
[319467083,1710798647885,-620.36,0.00021917,2]
[319467084,1710798647894,-1294.09,0.00021917,2]
[319467085,1710798647903,-500.0,0.00021917,2]
[319467086,1710798647913,-500.0,0.00021917,2]
[319467087,1710798647922,-500.0,0.00021917,2]
[319467088,1710798647931,-500.0,0.00021917,2]
[319467089,1710798647940,-500.0,0.00021917,2]
[319467090,1710798647950,-500.0,0.00021917,2]
[319467091,1710798647959,-2498.03,0.00021917,2]
[319467092,1710798647968,-1000.5,0.00021917,2]
[319467093,1710798647977,-500.0,0.00021917,2]
[319467094,1710798647986,-292.89044022,0.00021917,2]
[319467095,1710798647996,-574.59,0.00021917,2]
[319467096,1710798648005,-2643.79,0.00021917,2]
[319467097,1710798648014,-594.4,0.00021917,2]
[319467098,1710798648023,-500.0,0.00021917,2]
[319467099,1710798648033,-500.0,0.00021917,2]
[319467100,1710798648043,-165.09491953,0.00021917,2]
[319467101,1710798648053,-500.0,0.00021917,2]
[319467102,1710798648062,-2154.09,0.00021917,2]
[319467103,1710798648072,-500.0,0.00021917,2]
[319467104,1710798648082,-500.0,0.00021917,2]
[319467105,1710798648091,-500.0,0.00021917,2]
[319467106,1710798648101,-500.0,0.00021917,2]
[319467107,1710798648110,-500.0,0.00021917,2]
[319467108,1710798648120,-3003.99,0.00021917,2]
[319467109,1710798648131,-500.0,0.00021917,2]
[319467110,1710798648140,-2918.77,0.00021917,2]
[319467111,1710798648150,-500.0,0.00021917,2]
[319467112,1710798648159,-500.0,0.00021917,2]
[319467113,1710798648169,-500.0,0.00021917,2]
[319467114,1710798648178,-826.67,0.00021917,2]
[319467115,1710798648187,-945.0,0.00021917,2]
[319467116,1710798648197,-549.45218475,0.00021917,2]
[319467117,1710798648206,-494.55968995,0.00021917,2]
[319467118,1710798648216,-500.0,0.00021917,2]
[319467119,1710798648226,-500.0,0.00021917,2]
[319467120,1710798648237,-500.0,0.00021917,2]
[319467121,1710798648248,-500.0,0.00021917,2]
[319467122,1710798648257,-1593.53,0.00021917,2]
[319467123,1710798648267,-500.0,0.00021917,2]
[319467124,1710798648277,-500.0,0.00021917,2]
[319467125,1710798648287,-500.0,0.00021917,2]
[319467126,1710798648297,-553.08,0.00021917,2]
[319467127,1710798648306,-500.0,0.00021917,2]
[319467128,1710798648317,-500.0,0.00021917,2]
[319467129,1710798648326,-2028.54,0.00021917,2]
[319467130,1710798648335,-500.0,0.00021917,2]
[319467131,1710798648345,-4027.77,0.00021917,2]
[319467132,1710798648355,-500.0,0.00021917,2]
[319467133,1710798648364,-841.3,0.00021917,2]
[319467134,1710798648373,-1337.07,0.00021917,2]
[319467135,1710798648383,-500.0,0.00021917,2]
[319467136,1710798648393,-310.90698123,0.00021917,2]
[319467137,1710798648402,-200.24629144,0.00021917,2]
[319467138,1710798648413,-500.0,0.00021917,2]
[319467139,1710798648422,-500.0,0.00021917,2]
[319467140,1710798648431,-500.0,0.00021917,2]
[319467141,1710798648441,-189.88279832,0.00021917,2]
[319467142,1710798648451,-1622.98,0.00021917,2]
[319467143,1710798648461,-673.55,0.00021917,2]
[319467144,1710798648470,-861.82,0.00021917,2]
[319467145,1710798648479,-517.55452223,0.00021917,2]
[319467146,1710798648488,-500.0,0.00021917,2]
[319467147,1710798648497,-500.69500719,0.00021917,2]
[319467148,1710798648506,-1136.85,0.00021917,2]
[319467149,1710798648515,-500.0,0.00021917,2]
[319467150,1710798648525,-500.0,0.00021917,2]
[319467151,1710798648534,-580.16,0.00021917,2]
[319467152,1710798648543,-310.35388464,0.00021917,2]
[319467153,1710798648553,-500.0,0.00021917,2]
[319467154,1710798648562,-500.0,0.00021917,2]
[319467155,1710798648571,-2419.19,0.00021917,2]
[319467156,1710798648581,-500.0,0.00021917,2]
[319467157,1710798648591,-500.0,0.00021917,2]
[319467158,1710798648600,-2009.98,0.00021917,2]
[319467159,1710798648609,-779.54,0.00021917,2]
[319467160,1710798648619,-2148.98,0.00021917,2]
[319467161,1710798648628,-1207.65,0.00021917,2]
[319467162,1710798648637,-500.0,0.00021917,2]
[319467163,1710798648646,-1370.39,0.00021917,2]
[319467164,1710798648656,-678.14,0.00021917,2]
[319467165,1710798648665,-500.18100372,0.00021917,2]
[319467166,1710798648674,-1164.88,0.00021917,2]
[319467167,1710798648694,-1188.41,0.00021917,2]
[319467168,1710798648704,-500.0,0.00021917,2]
[319467169,1710798648714,-500.0,0.00021917,2]
[319467170,1710798648723,-2170.68,0.00021917,2]
[319467171,1710798648733,-500.0,0.00021917,2]
[319467172,1710798648743,-500.0,0.00021917,2]